[Event "Titled Tuesday Blitz June 6 Early 2023"]
[White "Aggelis, Nikolaos"]
[Black "Ziatdinov, Raset"]
[WhiteFideId "4213220"]
[BlackFideId "2015323"]
[WhiteElo "2189"]
[BlackElo "2220"]
[Result "1-0"]
[Round "4"]
[TimeControl "180+2"]
[Date "2023.06.06"]
[WhiteClock "0:00:41"]
[BlackClock "0:00:15"]
[Board "147"]

1. c4 {[%clk 0:02:56]}  Nf6 {[%clk 0:03:00]} 2. g3 {[%clk 0:02:54]}  g6 {[%clk 0:03:00]} 3. Bg2 {[%clk 0:02:55]}  Bg7 {[%clk 0:03:01]} 4. Nf3 {[%clk 0:02:56]}  O-O {[%clk 0:03:02]} 5. b3 {[%clk 0:02:56]}  d6 {[%clk 0:03:03]} 6. Bb2 {[%clk 0:02:56]}  Nc6 {[%clk 0:03:04]} 7. d4 {[%clk 0:02:51]}  e5 {[%clk 0:03:05]} 8. dxe5 {[%clk 0:02:52]}  Ng4 {[%clk 0:03:03]} 9. O-O {[%clk 0:02:50]}  dxe5 {[%clk 0:03:03]} 10. h3 {[%clk 0:02:46]}  Nh6 {[%clk 0:02:59]} 11. Qxd8 {[%clk 0:02:43]}  Rxd8 {[%clk 0:02:58]} 12. Nc3 {[%clk 0:02:44]}  e4 {[%clk 0:02:52]} 13. Ng5 {[%clk 0:02:43]}  f5 {[%clk 0:02:47]} 14. Rfd1 {[%clk 0:02:41]}  Nf7 {[%clk 0:02:37]} 15. Rxd8+ {[%clk 0:02:39]}  Ncxd8 {[%clk 0:02:37]} 16. Nxf7 {[%clk 0:02:35]}  Nxf7 {[%clk 0:02:37]} 17. Rb1 {[%clk 0:02:34]}  c6 {[%clk 0:02:36]} 18. Na4 {[%clk 0:02:24]}  b6 {[%clk 0:02:27]} 19. Bxg7 {[%clk 0:02:23]}  Kxg7 {[%clk 0:02:27]} 20. Rd1 {[%clk 0:02:24]}  Be6 {[%clk 0:02:26]} 21. f3 {[%clk 0:02:23]}  exf3 {[%clk 0:02:22]} 22. exf3 {[%clk 0:02:20]}  Rd8 {[%clk 0:02:05]} 23. Rxd8 {[%clk 0:02:16]}  Nxd8 {[%clk 0:02:06]} 24. f4 {[%clk 0:02:16]}  Bd7 {[%clk 0:01:57]} 25. Kf2 {[%clk 0:02:08]}  Ne6 {[%clk 0:01:56]} 26. Ke3 {[%clk 0:02:06]}  c5 {[%clk 0:01:55]} 27. Nc3 {[%clk 0:02:03]}  Nd4 {[%clk 0:01:55]} 28. Kd3 {[%clk 0:01:58]}  h6 {[%clk 0:01:48]} 29. h4 {[%clk 0:01:56]}  g5 {[%clk 0:01:35]} 30. fxg5 {[%clk 0:01:43]}  hxg5 {[%clk 0:01:36]} 31. Ne2 {[%clk 0:01:43]}  Nxe2 {[%clk 0:01:33]} 32. Kxe2 {[%clk 0:01:43]}  gxh4 {[%clk 0:01:33]} 33. gxh4 {[%clk 0:01:42]}  Kh6 {[%clk 0:01:31]} 34. Bf3 {[%clk 0:01:41]}  Be8 {[%clk 0:01:24]} 35. Ke3 {[%clk 0:01:40]}  Kg6 {[%clk 0:01:16]} 36. Kf4 {[%clk 0:01:40]}  Kf6 {[%clk 0:01:17]} 37. a3 {[%clk 0:01:31]}  Bf7 {[%clk 0:01:16]} 38. Bd5 {[%clk 0:01:26]}  Bh5 {[%clk 0:01:13]} 39. Bf3 {[%clk 0:01:24]}  Bf7 {[%clk 0:01:12]} 40. Be2 {[%clk 0:01:24]}  a6 {[%clk 0:01:03]} 41. Bd3 {[%clk 0:01:24]}  Bg6 {[%clk 0:00:58]} 42. Be2 {[%clk 0:01:23]}  Bf7 {[%clk 0:00:56]} 43. h5 {[%clk 0:01:24]}  Be6 {[%clk 0:00:49]} 44. Bd3 {[%clk 0:01:22]}  Bf7 {[%clk 0:00:31]} 45. h6 {[%clk 0:01:21]}  Bg6 {[%clk 0:00:29]} 46. b4 {[%clk 0:01:18]}  a5 {[%clk 0:00:29]} 47. bxa5 {[%clk 0:01:16]}  bxa5 {[%clk 0:00:30]} 48. Bc2 {[%clk 0:01:16]}  Bh7 {[%clk 0:00:26]} 49. Bb1 {[%clk 0:01:08]}  Bg6 {[%clk 0:00:26]} 50. Bd3 {[%clk 0:01:08]}  Bh7 {[%clk 0:00:27]} 51. Bc2 {[%clk 0:01:09]}  Bg6 {[%clk 0:00:27]} 52. Ba4 {[%clk 0:01:09]}  Bh7 {[%clk 0:00:27]} 53. Bd7 {[%clk 0:01:09]}  Bg6 {[%clk 0:00:27]} 54. Bc6 {[%clk 0:01:01]}  Bh7 {[%clk 0:00:26]} 55. Be8 {[%clk 0:01:01]}  Ke7 {[%clk 0:00:26]} 56. Bc6 {[%clk 0:00:52]}  Kf6 {[%clk 0:00:26]} 57. Bd7 {[%clk 0:00:45]}  Bg6 {[%clk 0:00:25]} 58. Bc8 {[%clk 0:00:45]}  Bh7 {[%clk 0:00:25]} 59. Bb7 {[%clk 0:00:42]}  Bg6 {[%clk 0:00:25]} 60. Bf3 {[%clk 0:00:42]}  Bh7 {[%clk 0:00:26]} 61. Bh5 {[%clk 0:00:42]}  Ke6 {[%clk 0:00:18]} 62. Kg5 {[%clk 0:00:41]}  Ke5 {[%clk 0:00:18]} 63. Bg6 {[%clk 0:00:41]}  Bg8 {[%clk 0:00:18]} 64. Bxf5 {[%clk 0:00:41]}  Kd4 {[%clk 0:00:15]} 65. Kf6 {[%clk 0:00:40]}  Kxc4 {[%clk 0:00:15]} 66. Kg7 {[%clk 0:00:41]} 1-0


[Site "https://www.chess.com"]

[Event "Titled Tuesday Blitz June 6 Early 2023"]
[White "Rian, Kapriaga"]
[Black "Orujov2008"]
[WhiteFideId "7103263"]
[WhiteElo "2320"]
[BlackElo "2489"]
[Result "1-0"]
[Round "4"]
[TimeControl "180+2"]
[Date "2023.06.06"]
[WhiteClock "0:01:03"]
[BlackClock "0:00:06"]
[Board "148"]

1. d4 {[%clk 0:03:00]}  Nf6 {[%clk 0:02:59]} 2. c4 {[%clk 0:02:59]}  e6 {[%clk 0:03:00]} 3. g3 {[%clk 0:03:00]}  d5 {[%clk 0:03:00]} 4. Nf3 {[%clk 0:03:00]}  Be7 {[%clk 0:03:00]} 5. Bg2 {[%clk 0:02:59]}  O-O {[%clk 0:03:01]} 6. O-O {[%clk 0:02:58]}  dxc4 {[%clk 0:03:02]} 7. Ne5 {[%clk 0:02:56]}  Nd5 {[%clk 0:03:01]} 8. Nxc4 {[%clk 0:02:50]}  b5 {[%clk 0:03:01]} 9. Ne5 {[%clk 0:02:49]}  Bb7 {[%clk 0:03:01]} 10. a4 {[%clk 0:02:39]}  b4 {[%clk 0:02:57]} 11. Nd2 {[%clk 0:02:37]}  c5 {[%clk 0:02:54]} 12. e3 {[%clk 0:02:33]}  cxd4 {[%clk 0:02:51]} 13. exd4 {[%clk 0:02:32]}  Nd7 {[%clk 0:02:51]} 14. Ndc4 {[%clk 0:02:31]}  Nxe5 {[%clk 0:02:45]} 15. Nxe5 {[%clk 0:02:29]}  a5 {[%clk 0:02:43]} 16. Bd2 {[%clk 0:02:17]}  Qd6 {[%clk 0:02:38]} 17. Rc1 {[%clk 0:02:04]}  Rfd8 {[%clk 0:02:37]} 18. Qh5 {[%clk 0:01:59]}  g6 {[%clk 0:02:28]} 19. Qf3 {[%clk 0:01:59]}  Bf6 {[%clk 0:01:58]} 20. Rfe1 {[%clk 0:01:54]}  Rf8 {[%clk 0:01:54]} 21. h4 {[%clk 0:01:52]}  h5 {[%clk 0:01:49]} 22. Bh6 {[%clk 0:01:50]}  Bg7 {[%clk 0:01:47]} 23. Bxg7 {[%clk 0:01:47]}  Kxg7 {[%clk 0:01:45]} 24. Rc5 {[%clk 0:01:42]}  Qe7 {[%clk 0:01:34]} 25. Rec1 {[%clk 0:01:39]}  Rac8 {[%clk 0:01:17]} 26. Qd3 {[%clk 0:01:32]}  Rfd8 {[%clk 0:01:10]} 27. Qb5 {[%clk 0:01:31]}  Qe8 {[%clk 0:00:37]} 28. Qxb7 {[%clk 0:01:25]}  Rb8 {[%clk 0:00:11]} 29. Qa7 {[%clk 0:01:15]}  Ra8 {[%clk 0:00:10]} 30. Qb7 {[%clk 0:01:09]}  Rab8 {[%clk 0:00:09]} 31. Qa6 {[%clk 0:01:08]}  Ra8 {[%clk 0:00:09]} 32. Qb5 {[%clk 0:01:05]}  Qf8 {[%clk 0:00:07]} 33. Bxd5 {[%clk 0:01:04]}  exd5 {[%clk 0:00:06]} 34. Rc7 {[%clk 0:01:03]} 1-0


[Site "https://www.chess.com"]

[Event "Titled Tuesday Blitz June 6 Early 2023"]
[White "Turzo, Attila"]
[Black "Buscar, Michael"]
[WhiteFideId "704954"]
[BlackFideId "2603616"]
[WhiteElo "2481"]
[BlackElo "2010"]
[Result "1-0"]
[Round "4"]
[TimeControl "180+2"]
[Date "2023.06.06"]
[WhiteClock "0:01:26"]
[BlackClock "0:01:30"]
[Board "150"]

1. d4 {[%clk 0:03:00]}  d5 {[%clk 0:02:51]} 2. c4 {[%clk 0:03:00]}  e6 {[%clk 0:02:50]} 3. Nf3 {[%clk 0:03:00]}  c5 {[%clk 0:02:48]} 4. cxd5 {[%clk 0:02:52]}  exd5 {[%clk 0:02:47]} 5. Nc3 {[%clk 0:02:53]}  Nc6 {[%clk 0:02:47]} 6. Bg5 {[%clk 0:02:49]}  Nf6 {[%clk 0:02:45]} 7. e3 {[%clk 0:02:45]}  Bg4 {[%clk 0:02:33]} 8. Be2 {[%clk 0:02:44]}  c4 {[%clk 0:02:22]} 9. O-O {[%clk 0:02:38]}  Be7 {[%clk 0:02:21]} 10. Ne5 {[%clk 0:02:32]}  Nxe5 {[%clk 0:02:05]} 11. dxe5 {[%clk 0:02:30]}  Bxe2 {[%clk 0:02:05]} 12. Qxe2 {[%clk 0:02:23]}  Ne4 {[%clk 0:02:02]} 13. Nxe4 {[%clk 0:02:07]}  Bxg5 {[%clk 0:01:56]} 14. Nd6+ {[%clk 0:02:05]}  Kf8 {[%clk 0:01:51]} 15. Qf3 {[%clk 0:01:53]}  Qe7 {[%clk 0:01:42]} 16. Qxd5 {[%clk 0:01:51]}  f6 {[%clk 0:01:38]} 17. f4 {[%clk 0:01:49]}  Bh6 {[%clk 0:01:36]} 18. exf6 {[%clk 0:01:32]}  gxf6 {[%clk 0:01:30]} 19. Nf5 {[%clk 0:01:26]} 1-0


[Site "https://www.chess.com"]

[Event "Titled Tuesday Blitz June 6 Early 2023"]
[White "Mrithyunjay Mahadevan"]
[Black "Rodriguez Santiago, Jaime"]
[WhiteFideId "45003521"]
[BlackFideId "3100898"]
[WhiteElo "1626"]
[BlackElo "2025"]
[Result "1-0"]
[Round "4"]
[TimeControl "180+2"]
[Date "2023.06.06"]
[WhiteClock "0:02:03"]
[BlackClock "0:00:30"]
[Board "155"]

1. e4 {[%clk 0:03:00]}  c6 {[%clk 0:02:59]} 2. d4 {[%clk 0:02:54]}  d5 {[%clk 0:02:59]} 3. e5 {[%clk 0:02:54]}  Bf5 {[%clk 0:02:59]} 4. Nd2 {[%clk 0:02:53]}  e6 {[%clk 0:02:58]} 5. Nb3 {[%clk 0:02:48]}  c5 {[%clk 0:02:58]} 6. dxc5 {[%clk 0:02:47]}  Bxc5 {[%clk 0:02:57]} 7. Nxc5 {[%clk 0:02:46]}  Qa5+ {[%clk 0:02:57]} 8. c3 {[%clk 0:02:46]}  Qxc5 {[%clk 0:02:57]} 9. h4 {[%clk 0:02:46]}  h5 {[%clk 0:02:52]} 10. Be3 {[%clk 0:02:45]}  Qc7 {[%clk 0:02:50]} 11. Nf3 {[%clk 0:02:43]}  Nc6 {[%clk 0:02:50]} 12. Bb5 {[%clk 0:02:40]}  Ne7 {[%clk 0:02:49]} 13. O-O {[%clk 0:02:36]}  a6 {[%clk 0:02:46]} 14. Ba4 {[%clk 0:02:36]}  b5 {[%clk 0:02:41]} 15. Bc2 {[%clk 0:02:35]}  O-O {[%clk 0:02:32]} 16. Bf4 {[%clk 0:02:31]}  Rac8 {[%clk 0:02:14]} 17. Bxf5 {[%clk 0:02:28]}  Nxf5 {[%clk 0:02:13]} 18. Rc1 {[%clk 0:02:24]}  Rfd8 {[%clk 0:02:06]} 19. Nd4 {[%clk 0:02:23]}  Ncxd4 {[%clk 0:02:00]} 20. cxd4 {[%clk 0:02:24]}  Qb6 {[%clk 0:01:52]} 21. Be3 {[%clk 0:02:20]}  g6 {[%clk 0:01:50]} 22. g4 {[%clk 0:02:17]}  hxg4 {[%clk 0:01:45]} 23. Qxg4 {[%clk 0:02:16]}  Kg7 {[%clk 0:01:16]} 24. Bg5 {[%clk 0:02:09]}  Rxc1 {[%clk 0:01:10]} 25. Rxc1 {[%clk 0:02:09]}  Qxd4 {[%clk 0:00:41]} 26. Qxd4 {[%clk 0:02:07]}  Nxd4 {[%clk 0:00:39]} 27. Bf6+ {[%clk 0:02:08]}  Kh7 {[%clk 0:00:39]} 28. Rd1 {[%clk 0:02:08]}  Nf5 {[%clk 0:00:36]} 29. Bxd8 {[%clk 0:02:07]}  Kh6 {[%clk 0:00:34]} 30. Kg2 {[%clk 0:02:04]}  Kh5 {[%clk 0:00:34]} 31. Kh3 {[%clk 0:02:04]}  d4 {[%clk 0:00:30]} 32. Bg5 {[%clk 0:02:03]} 1-0


[Site "https://www.chess.com"]

[Event "Titled Tuesday Blitz June 6 Early 2023"]
[White "Jiganchine, Roman"]
[Black "Hirneise, Jens"]
[WhiteFideId "2603667"]
[BlackFideId "24614734"]
[WhiteElo "2296"]
[BlackElo "2345"]
[Result "0-1"]
[Round "4"]
[TimeControl "180+2"]
[Date "2023.06.06"]
[WhiteClock "0:00:02"]
[BlackClock "0:00:16"]
[Board "156"]

1. e4 {[%clk 0:03:00]}  g6 {[%clk 0:02:54]} 2. d4 {[%clk 0:02:47]}  Bg7 {[%clk 0:02:53]} 3. Be3 {[%clk 0:02:47]}  c5 {[%clk 0:02:52]} 4. Nc3 {[%clk 0:02:23]}  cxd4 {[%clk 0:02:49]} 5. Bxd4 {[%clk 0:02:23]}  e5 {[%clk 0:02:35]} 6. Bc5 {[%clk 0:02:15]}  Nf6 {[%clk 0:02:20]} 7. Ba3 {[%clk 0:01:57]}  Bf8 {[%clk 0:02:17]} 8. Bxf8 {[%clk 0:01:51]}  Kxf8 {[%clk 0:02:08]} 9. Qd6+ {[%clk 0:01:51]}  Qe7 {[%clk 0:02:06]} 10. O-O-O {[%clk 0:01:48]}  Qxd6 {[%clk 0:02:01]} 11. Rxd6 {[%clk 0:01:48]}  Ke7 {[%clk 0:02:02]} 12. Rd2 {[%clk 0:01:43]}  d6 {[%clk 0:01:57]} 13. f3 {[%clk 0:01:42]}  Be6 {[%clk 0:01:56]} 14. h4 {[%clk 0:01:32]}  Nc6 {[%clk 0:01:50]} 15. Nh3 {[%clk 0:01:29]}  h6 {[%clk 0:01:46]} 16. Nf2 {[%clk 0:01:29]}  Rhd8 {[%clk 0:01:45]} 17. g4 {[%clk 0:01:27]}  g5 {[%clk 0:01:30]} 18. Be2 {[%clk 0:01:16]}  d5 {[%clk 0:01:28]} 19. hxg5 {[%clk 0:01:04]}  hxg5 {[%clk 0:01:21]} 20. exd5 {[%clk 0:01:04]}  Nxd5 {[%clk 0:01:20]} 21. Nfe4 {[%clk 0:00:59]}  Nxc3 {[%clk 0:01:07]} 22. bxc3 {[%clk 0:00:52]}  Rxd2 {[%clk 0:01:06]} 23. Kxd2 {[%clk 0:00:52]}  Rd8+ {[%clk 0:01:03]} 24. Ke3 {[%clk 0:00:51]}  Bxa2 {[%clk 0:01:00]} 25. Bb5 {[%clk 0:00:38]}  Bd5 {[%clk 0:00:56]} 26. Nxg5 {[%clk 0:00:34]}  Na5 {[%clk 0:00:55]} 27. Bd3 {[%clk 0:00:13]}  Rc8 {[%clk 0:00:54]} 28. Ra1 {[%clk 0:00:11]}  b6 {[%clk 0:00:50]} 29. c4 {[%clk 0:00:09]}  Bxc4 {[%clk 0:00:48]} 30. Bf5 {[%clk 0:00:08]}  Rc7 {[%clk 0:00:45]} 31. Ne4 {[%clk 0:00:07]}  Bd5 {[%clk 0:00:43]} 32. Kf2 {[%clk 0:00:04]}  Rxc2+ {[%clk 0:00:40]} 33. Kg3 {[%clk 0:00:04]}  Bxe4 {[%clk 0:00:37]} 34. Bxe4 {[%clk 0:00:04]}  Rc7 {[%clk 0:00:37]} 35. g5 {[%clk 0:00:04]}  Nb3 {[%clk 0:00:31]} 36. Rh1 {[%clk 0:00:04]}  a5 {[%clk 0:00:20]} 37. Rh7 {[%clk 0:00:03]}  Kf8 {[%clk 0:00:17]} 38. Bd5 {[%clk 0:00:02]}  Kg8 {[%clk 0:00:16]} 0-1


[Site "https://www.chess.com"]

[Event "Titled Tuesday Blitz June 6 Early 2023"]
[White "Bettalli, Francesco"]
[Black "Palacio,Igor Da Paz"]
[WhiteFideId "2816453"]
[BlackFideId "2121140"]
[WhiteElo "2216"]
[BlackElo "2126"]
[Result "1/2-1/2"]
[Round "4"]
[TimeControl "180+2"]
[Date "2023.06.06"]
[WhiteClock "0:01:18"]
[BlackClock "0:00:03"]
[Board "158"]

1. d4 {[%clk 0:03:00]}  Nf6 {[%clk 0:02:59]} 2. Nc3 {[%clk 0:02:37]}  d5 {[%clk 0:02:58]} 3. Bg5 {[%clk 0:02:36]}  Nbd7 {[%clk 0:02:48]} 4. e3 {[%clk 0:02:33]}  e6 {[%clk 0:02:42]} 5. Bd3 {[%clk 0:02:33]}  c5 {[%clk 0:02:40]} 6. f3 {[%clk 0:02:32]}  Qb6 {[%clk 0:02:39]} 7. dxc5 {[%clk 0:02:29]}  Bxc5 {[%clk 0:02:36]} 8. Qc1 {[%clk 0:02:27]}  h6 {[%clk 0:02:32]} 9. Bxf6 {[%clk 0:02:27]}  Bxe3 {[%clk 0:02:14]} 10. Na4 {[%clk 0:02:13]}  Bxc1 {[%clk 0:01:31]} 11. Nxb6 {[%clk 0:02:12]}  axb6 {[%clk 0:01:23]} 12. Bxg7 {[%clk 0:02:07]}  Rg8 {[%clk 0:01:18]} 13. Rxc1 {[%clk 0:02:02]}  Rxg7 {[%clk 0:01:18]} 14. g3 {[%clk 0:02:02]}  Rxa2 {[%clk 0:01:16]} 15. b4 {[%clk 0:02:00]}  Ne5 {[%clk 0:01:09]} 16. Bb5+ {[%clk 0:02:00]}  Bd7 {[%clk 0:01:09]} 17. Bxd7+ {[%clk 0:02:00]}  Kxd7 {[%clk 0:01:08]} 18. f4 {[%clk 0:02:00]}  Nc4 {[%clk 0:01:07]} 19. Nf3 {[%clk 0:02:00]}  Rb2 {[%clk 0:00:56]} 20. O-O {[%clk 0:01:55]}  Rxb4 {[%clk 0:00:52]} 21. Rb1 {[%clk 0:01:54]}  Rxb1 {[%clk 0:00:50]} 22. Rxb1 {[%clk 0:01:55]}  Rg8 {[%clk 0:00:43]} 23. Ra1 {[%clk 0:01:54]}  Kc7 {[%clk 0:00:39]} 24. Kf2 {[%clk 0:01:52]}  f6 {[%clk 0:00:36]} 25. Ke2 {[%clk 0:01:50]}  e5 {[%clk 0:00:34]} 26. f5 {[%clk 0:01:50]}  Kc6 {[%clk 0:00:31]} 27. Nh4 {[%clk 0:01:41]}  Rg4 {[%clk 0:00:29]} 28. Kd3 {[%clk 0:01:40]}  Rd4+ {[%clk 0:00:25]} 29. Kc3 {[%clk 0:01:40]}  Re4 {[%clk 0:00:22]} 30. Ra8 {[%clk 0:01:37]}  Kb5 {[%clk 0:00:13]} 31. Kb3 {[%clk 0:01:32]}  Re3+ {[%clk 0:00:13]} 32. Ka2 {[%clk 0:01:29]}  Re2 {[%clk 0:00:13]} 33. Kb3 {[%clk 0:01:28]}  Nd2+ {[%clk 0:00:07]} 34. Kb2 {[%clk 0:01:26]}  Nc4+ {[%clk 0:00:07]} 35. Kb3 {[%clk 0:01:26]}  Re3+ {[%clk 0:00:05]} 36. Ka2 {[%clk 0:01:26]}  Rc3 {[%clk 0:00:05]} 37. Kb1 {[%clk 0:01:24]}  Re3 {[%clk 0:00:02]} 38. Rf8 {[%clk 0:01:23]}  Re1+ {[%clk 0:00:02]} 39. Ka2 {[%clk 0:01:23]}  Re2 {[%clk 0:00:03]} 40. Kb3 {[%clk 0:01:23]}  Re3+ {[%clk 0:00:03]} 41. Ka2 {[%clk 0:01:22]}  Kb4 {[%clk 0:00:03]} 42. Rxf6 {[%clk 0:01:21]}  Re2 {[%clk 0:00:03]} 43. Kb1 {[%clk 0:01:17]}  Re1+ {[%clk 0:00:03]} 44. Ka2 {[%clk 0:01:18]}  Re2 {[%clk 0:00:03]} 45. Kb1 {[%clk 0:01:18]}  Re1+ {[%clk 0:00:03]} 46. Ka2 {[%clk 0:01:18]}  Re2 {[%clk 0:00:03]} 1/2-1/2


[Site "https://www.chess.com"]

[Event "Titled Tuesday Blitz June 6 Early 2023"]
[White "LangesNasenhaar"]
[Black "Balint, Vilmos"]
[BlackFideId "718050"]
[WhiteElo "2460"]
[BlackElo "2034"]
[Result "1-0"]
[Round "4"]
[TimeControl "180+2"]
[Date "2023.06.06"]
[WhiteClock "0:01:26"]
[BlackClock "0:02:07"]
[Board "160"]

1. d4 {[%clk 0:03:00]}  Nf6 {[%clk 0:02:57]} 2. Nc3 {[%clk 0:03:00]}  d5 {[%clk 0:02:56]} 3. Bf4 {[%clk 0:03:01]}  c5 {[%clk 0:02:55]} 4. e4 {[%clk 0:03:01]}  dxe4 {[%clk 0:02:55]} 5. dxc5 {[%clk 0:03:00]}  Nc6 {[%clk 0:02:54]} 6. Qxd8+ {[%clk 0:02:59]}  Nxd8 {[%clk 0:02:53]} 7. Nge2 {[%clk 0:02:49]}  a6 {[%clk 0:02:52]} 8. Ng3 {[%clk 0:02:49]}  e5 {[%clk 0:02:47]} 9. Bxe5 {[%clk 0:02:48]}  Bxc5 {[%clk 0:02:45]} 10. Bxf6 {[%clk 0:02:41]}  gxf6 {[%clk 0:02:44]} 11. Ngxe4 {[%clk 0:02:41]}  Be7 {[%clk 0:02:45]} 12. Nd5 {[%clk 0:02:34]}  Ne6 {[%clk 0:02:31]} 13. Nexf6+ {[%clk 0:02:31]}  Kf8 {[%clk 0:02:31]} 14. O-O-O {[%clk 0:02:27]}  Kg7 {[%clk 0:02:29]} 15. Nxe7 {[%clk 0:02:25]}  Kxf6 {[%clk 0:02:29]} 16. Nd5+ {[%clk 0:02:21]}  Kg7 {[%clk 0:02:26]} 17. Nb6 {[%clk 0:02:20]}  Rb8 {[%clk 0:02:26]} 18. Bc4 {[%clk 0:02:19]}  Nf4 {[%clk 0:02:25]} 19. g3 {[%clk 0:02:13]}  Nh3 {[%clk 0:02:24]} 20. Rd2 {[%clk 0:02:03]}  Bg4 {[%clk 0:02:24]} 21. f4 {[%clk 0:01:55]}  Rbe8 {[%clk 0:02:16]} 22. Bd5 {[%clk 0:01:45]}  Re7 {[%clk 0:02:11]} 23. b3 {[%clk 0:01:35]}  h5 {[%clk 0:02:11]} 24. Bg2 {[%clk 0:01:32]}  h4 {[%clk 0:02:09]} 25. Bxh3 {[%clk 0:01:27]}  Bxh3 {[%clk 0:02:09]} 26. Rg1 {[%clk 0:01:27]}  Kf6 {[%clk 0:02:07]} 27. Nd5+ {[%clk 0:01:26]}  Ke6 {[%clk 0:02:07]} 1-0


[Site "https://www.chess.com"]

[Event "Titled Tuesday Blitz June 6 Early 2023"]
[White "Leschinsky, Gary"]
[Black "Principe, Alexander"]
[WhiteFideId "30951321"]
[BlackFideId "3804542"]
[WhiteElo "2020"]
[BlackElo "2203"]
[Result "1/2-1/2"]
[Round "4"]
[TimeControl "180+2"]
[Date "2023.06.06"]
[WhiteClock "0:00:17"]
[BlackClock "0:00:06"]
[Board "162"]

1. e4 {[%clk 0:03:00]}  e6 {[%clk 0:02:24]} 2. d4 {[%clk 0:02:58]}  d5 {[%clk 0:02:24]} 3. Nc3 {[%clk 0:02:58]}  Bb4 {[%clk 0:02:23]} 4. e5 {[%clk 0:02:58]}  c5 {[%clk 0:02:23]} 5. a3 {[%clk 0:02:58]}  Bxc3+ {[%clk 0:02:24]} 6. bxc3 {[%clk 0:02:59]}  Ne7 {[%clk 0:02:24]} 7. a4 {[%clk 0:02:55]}  Qa5 {[%clk 0:02:23]} 8. Qd2 {[%clk 0:02:50]}  Nbc6 {[%clk 0:02:19]} 9. Nf3 {[%clk 0:02:48]}  Bd7 {[%clk 0:02:19]} 10. Ba3 {[%clk 0:02:45]}  cxd4 {[%clk 0:02:06]} 11. cxd4 {[%clk 0:02:44]}  Qxd2+ {[%clk 0:02:06]} 12. Kxd2 {[%clk 0:02:45]}  h6 {[%clk 0:02:05]} 13. Bd3 {[%clk 0:02:37]}  O-O-O {[%clk 0:02:03]} 14. h4 {[%clk 0:02:32]}  Rde8 {[%clk 0:02:03]} 15. h5 {[%clk 0:02:31]}  Na5 {[%clk 0:02:03]} 16. Ke2 {[%clk 0:02:25]}  Kb8 {[%clk 0:01:56]} 17. Rhb1 {[%clk 0:02:20]}  Nec6 {[%clk 0:01:47]} 18. g4 {[%clk 0:02:14]}  Rc8 {[%clk 0:01:43]} 19. c3 {[%clk 0:02:08]}  Ka8 {[%clk 0:01:40]} 20. Nd2 {[%clk 0:02:05]}  Nb8 {[%clk 0:01:05]} 21. Bb4 {[%clk 0:01:58]}  Nbc6 {[%clk 0:00:50]} 22. Bd6 {[%clk 0:01:55]}  Nd8 {[%clk 0:00:46]} 23. Rc1 {[%clk 0:01:49]}  Nc4 {[%clk 0:00:38]} 24. Nxc4 {[%clk 0:01:41]}  dxc4 {[%clk 0:00:39]} 25. Be4 {[%clk 0:01:41]}  Bc6 {[%clk 0:00:37]} 26. Ke3 {[%clk 0:01:41]}  Bxe4 {[%clk 0:00:34]} 27. Kxe4 {[%clk 0:01:42]}  Nc6 {[%clk 0:00:34]} 28. f4 {[%clk 0:01:39]}  Na5 {[%clk 0:00:34]} 29. Rab1 {[%clk 0:01:36]}  Nb3 {[%clk 0:00:33]} 30. Rd1 {[%clk 0:01:36]}  b6 {[%clk 0:00:28]} 31. Rb2 {[%clk 0:01:33]}  Kb7 {[%clk 0:00:27]} 32. Rf2 {[%clk 0:01:31]}  g6 {[%clk 0:00:21]} 33. Rh1 {[%clk 0:01:26]}  Kc6 {[%clk 0:00:20]} 34. hxg6 {[%clk 0:01:24]}  fxg6 {[%clk 0:00:20]} 35. Rfh2 {[%clk 0:01:24]}  h5 {[%clk 0:00:16]} 36. gxh5 {[%clk 0:01:24]}  gxh5 {[%clk 0:00:17]} 37. Rxh5 {[%clk 0:01:25]}  Rhg8 {[%clk 0:00:15]} 38. Rg5 {[%clk 0:01:18]}  Rh8 {[%clk 0:00:14]} 39. Rxh8 {[%clk 0:01:16]}  Rxh8 {[%clk 0:00:15]} 40. Rg7 {[%clk 0:01:15]}  b5 {[%clk 0:00:16]} 41. axb5+ {[%clk 0:01:14]}  Kxb5 {[%clk 0:00:17]} 42. Rxa7 {[%clk 0:01:14]}  Rh3 {[%clk 0:00:16]} 43. f5 {[%clk 0:01:04]}  Nd2+ {[%clk 0:00:11]} 44. Kf4 {[%clk 0:01:03]}  Rf3+ {[%clk 0:00:11]} 45. Kg4 {[%clk 0:01:02]}  exf5+ {[%clk 0:00:12]} 46. Kh4 {[%clk 0:01:00]}  Rxc3 {[%clk 0:00:09]} 47. e6 {[%clk 0:00:56]}  Rf3 {[%clk 0:00:09]} 48. e7 {[%clk 0:00:54]}  Re3 {[%clk 0:00:01]} 49. Ra8 {[%clk 0:00:50]}  Nf3+ {[%clk 0:00:01]} 50. Kh5 {[%clk 0:00:50]}  Nxd4 {[%clk 0:00:01]} 51. e8=Q+ {[%clk 0:00:50]}  Rxe8 {[%clk 0:00:01]} 52. Rxe8 {[%clk 0:00:50]}  Kc6 {[%clk 0:00:02]} 53. Be5 {[%clk 0:00:44]}  Kd5 {[%clk 0:00:01]} 54. Bxd4 {[%clk 0:00:38]}  Kxd4 {[%clk 0:00:02]} 55. Rd8+ {[%clk 0:00:34]}  Ke3 {[%clk 0:00:02]} 56. Kg5 {[%clk 0:00:32]}  c3 {[%clk 0:00:02]} 57. Re8+ {[%clk 0:00:32]}  Kd3 {[%clk 0:00:03]} 58. Kf4 {[%clk 0:00:31]}  c2 {[%clk 0:00:03]} 59. Rd8+ {[%clk 0:00:31]}  Ke2 {[%clk 0:00:04]} 60. Rc8 {[%clk 0:00:28]}  Kd2 {[%clk 0:00:04]} 61. Rd8+ {[%clk 0:00:28]}  Ke2 {[%clk 0:00:05]} 62. Rc8 {[%clk 0:00:21]}  Kd2 {[%clk 0:00:05]} 63. Kxf5 {[%clk 0:00:18]}  c1=Q {[%clk 0:00:05]} 64. Rxc1 {[%clk 0:00:17]}  Kxc1 {[%clk 0:00:06]} 1/2-1/2


[Site "https://www.chess.com"]

[Event "Titled Tuesday Blitz June 6 Early 2023"]
[White "Clawitter, Craig"]
[Black "Ramirez Vido, Robert Yorisan"]
[WhiteFideId "2023105"]
[BlackFideId "3513823"]
[WhiteElo "2234"]
[BlackElo "2444"]
[Result "0-1"]
[Round "4"]
[TimeControl "180+2"]
[Date "2023.06.06"]
[WhiteClock "0:00:05"]
[BlackClock "0:00:18"]
[Board "165"]

1. e4 {[%clk 0:02:52]}  d6 {[%clk 0:03:00]} 2. d4 {[%clk 0:02:52]}  Nf6 {[%clk 0:02:57]} 3. Nc3 {[%clk 0:02:52]}  g6 {[%clk 0:02:55]} 4. Be3 {[%clk 0:02:52]}  c6 {[%clk 0:02:54]} 5. Nf3 {[%clk 0:02:50]}  Bg7 {[%clk 0:02:52]} 6. Qd2 {[%clk 0:02:47]}  b5 {[%clk 0:02:51]} 7. Bd3 {[%clk 0:02:43]}  Bg4 {[%clk 0:02:37]} 8. Bh6 {[%clk 0:02:41]}  Bxh6 {[%clk 0:02:29]} 9. Qxh6 {[%clk 0:02:42]}  Bxf3 {[%clk 0:02:29]} 10. gxf3 {[%clk 0:02:43]}  Nbd7 {[%clk 0:02:24]} 11. O-O-O {[%clk 0:02:32]}  Qa5 {[%clk 0:02:21]} 12. Kb1 {[%clk 0:02:14]}  b4 {[%clk 0:01:54]} 13. Ne2 {[%clk 0:02:13]}  c5 {[%clk 0:01:54]} 14. Rhe1 {[%clk 0:01:30]}  Rc8 {[%clk 0:01:50]} 15. e5 {[%clk 0:01:25]}  dxe5 {[%clk 0:01:39]} 16. dxe5 {[%clk 0:01:23]}  Nxe5 {[%clk 0:01:40]} 17. Nf4 {[%clk 0:00:59]}  Nxd3 {[%clk 0:01:37]} 18. Qg7 {[%clk 0:00:26]}  Rg8 {[%clk 0:01:26]} 19. Qxf6 {[%clk 0:00:24]}  Nxe1 {[%clk 0:01:26]} 20. Rxe1 {[%clk 0:00:19]}  Rc7 {[%clk 0:01:06]} 21. Nd5 {[%clk 0:00:17]}  Rd7 {[%clk 0:01:05]} 22. Rxe7+ {[%clk 0:00:17]}  Kd8 {[%clk 0:00:53]} 23. Rxf7+ {[%clk 0:00:12]}  Kc8 {[%clk 0:00:49]} 24. Qc6+ {[%clk 0:00:11]}  Kb8 {[%clk 0:00:39]} 25. Qxd7 {[%clk 0:00:09]}  Qa6 {[%clk 0:00:27]} 26. Qc7+ {[%clk 0:00:09]}  Ka8 {[%clk 0:00:27]} 27. b3 {[%clk 0:00:08]}  Re8 {[%clk 0:00:20]} 28. Qxc5 {[%clk 0:00:05]}  Re1+ {[%clk 0:00:18]} 29. Kb2 {[%clk 0:00:05]}  Qa3# {[%clk 0:00:18]} 0-1


[Site "https://www.chess.com"]